Workbook

Sheet KÖLTSÉGVETÉS ÖSSZEGZÉSE
B2: KÖLTSÉGVETÉS ÖSSZEGZÉSE JELENTÉS | I2: =YEAR(TODAY()) -> 2019
B3: Cég neve
B4: A sablon automatikusan kiszámítja a szürke cellákat, amelyeket általában nem kell módosítania.
B5: Eredménykimutatás összegzése | C5: Májusi tényleges adatok | D5: Májusi céladatok | E5: Havi eltérés | F5: Idei tényleges adatok | G5: Idei céladatok | H5: Idei különbség | I5: Megjegyzések
B6: Árbevétel | C6: 1,200,000.00 Ft | D6: 1,100,000.00 Ft | E6: =C6-D6 -> 100,000.00 Ft | F6: 6,200,000.00 Ft | G6: 6,000,000.00 Ft | H6: =F6-G6 -> 200,000.00 Ft | I6: 9%-kal túlléptük a májusi bevétel céladatait, a nyugati régió nagyobb hatékonysága miatt.
B7: Bruttó nyereség | C7: 150,000.00 Ft | D7: 160,000.00 Ft | E7: =C7-D7 -> -10,000.00 Ft | F7: 640,000.00 Ft | G7: 750,000.00 Ft | H7: =F7-G7 -> -110,000.00 Ft
B8: Bruttó nyereség százaléka | C8: =IF(C6=0,0,C7/C6) -> 12.5% | D8: =IF(D6=0,0,D7/D6) -> 14.5% | E8: =C8-D8 -> -2.0% | F8: =IF(F6=0,0,F7/F6) -> 10.3% | G8: =IF(G6=0,0,G7/G6) -> 12.5% | H8: =F8-G8 -> -2.2%
B9: Új termékek értékesítése | C9: 200,000.00 Ft | D9: 150,000.00 Ft | E9: =C9-D9 -> 50,000.00 Ft | F9: 900,000.00 Ft | G9: 750,000.00 Ft | H9: =F9-G9 -> 150,000.00 Ft
B10: Értékesítés lebontása régiók szerint:
B11: Északkeleti régió | C11: 400,000.00 Ft | D11: 400,000.00 Ft | E11: =C11-D11 -> 0.00 Ft | F11: 2,200,000.00 Ft | G11: 2,000,000.00 Ft | H11: =F11-G11 -> 200,000.00 Ft
B12: Középrégió | C12: 400,000.00 Ft | D12: 400,000.00 Ft | E12: =C12-D12 -> 0.00 Ft | F12: 2,400,000.00 Ft | G12: 2,000,000.00 Ft | H12: =F12-G12 -> 400,000.00 Ft
B13: Nyugati régió | C13: 400,000.00 Ft | D13: 300,000.00 Ft | E13: =C13-D13 -> 100,000.00 Ft | F13: 1,600,000.00 Ft | G13: 2,000,000.00 Ft | H13: =F13-G13 -> -400,000.00 Ft
B14: Kiadások és nyereség:
B15: Értékesítési, általános és adminisztratív kiadások | C15: 100,000.00 Ft | D15: 120,000.00 Ft | E15: =D15-C15 -> 20,000.00 Ft | F15: 500,000.00 Ft | G15: 600,000.00 Ft | H15: =G15-F15 -> 100,000.00 Ft
B16: Adózás előtti működési profit (veszteség) | C16: 50,000.00 Ft | D16: 40,000.00 Ft | E16: =C16-D16 -> 10,000.00 Ft | F16: 140,000.00 Ft | G16: 150,000.00 Ft | H16: =F16-G16 -> -10,000.00 Ft
B17: Működési nyereség | C17: =IF(C6=0,0,C16/C6) -> 4% | D17: =IF(D6=0,0,D16/D6) -> 4% | E17: =C17-D17 -> 1% | F17: =IF(F6=0,0,F16/F6) -> 2% | G17: =IF(G6=0,0,G16/G6) -> 3% | H17: =F17-G17 -> -0%
B19: Mérleg összegzése | C19: Májusi tényleges adatok | D19: Májusi céladatok | E19: Havi eltérés | F19: Idei tényleges adatok | G19: Idei céladatok | H19: Idei különbség | I19: Megjegyzések
B20: Időszak végi pénzforgalom | C20: 35,000.00 Ft | D20: 50,000.00 Ft | E20: =C20-D20 -> -15,000.00 Ft | F20: 35,000.00 Ft | G20: 50,000.00 Ft | H20: =F20-G20 -> -15,000.00 Ft | I20: A pénzforgalom eltérését a cégnév céggel folytatott jogi vita alapján május 8-án történt pénzbeli kiegyenlítés okozta.
B21: Kinnlévőségek | C21: 20,000.00 Ft | D21: 22,000.00 Ft | E21: -2,000.00 Ft | F21: 20,000.00 Ft | G21: 22,000.00 Ft | H21: -2,000.00 Ft
B22: Leltár | C22: 25,000.00 Ft | D22: 30,000.00 Ft | E22: -5,000.00 Ft | F22: 25,000.00 Ft | G22: 30,000.00 Ft | H22: -5,000.00 Ft
B23: Likvid eszközök összesen | C23: 75,000.00 Ft | D23: 90,000.00 Ft | E23: -15,000.00 Ft | F23: 75,000.00 Ft | G23: 90,000.00 Ft | H23: -15,000.00 Ft
B24: Adóegyezmények által megkövetelt eszközök | C24: 25,000.00 Ft | D24: 25,000.00 Ft | E24: 0.00 Ft | F24: 25,000.00 Ft | G24: 25,000.00 Ft | H24: 0.00 Ft
B25: Adóegyezmény puffere | C25: =C23-C24 -> 50,000.00 Ft | D25: =D23-D24 -> 65,000.00 Ft | E25: -15,000.00 Ft | F25: =F23-F24 -> 50,000.00 Ft | G25: =G23-G24 -> 65,000.00 Ft | H25: -15,000.00 Ft
B26: Egyéb mérlegtételek:
B27: Ingatlan, üzem és berendezések | C27: 80,000.00 Ft | D27: 78,000.00 Ft | E27: =C27-D27 -> 2,000.00 Ft | F27: 80,000.00 Ft | G27: 78,000.00 Ft | H27: =F27-G27 -> 2,000.00 Ft | I27: Az eltérést a B üzembe vásárolt új gép okozza.
B28: Kötelezettségek | C28: 60,000.00 Ft | D28: 60,000.00 Ft | E28: =D28-C28 -> 0.00 Ft | F28: 60,000.00 Ft | G28: 60,000.00 Ft | H28: =F28-G28 -> 0.00 Ft
B29: Hosszú lejáratú kötelezettségek | C29: 30,000.00 Ft | D29: 31,000.00 Ft | E29: =D29-C29 -> 1,000.00 Ft | F29: 30,000.00 Ft | G29: 31,000.00 Ft | H29: =G29-F29 -> 1,000.00 Ft
B30: Részvényesek saját tőkéje | C30: 300,000.00 Ft | D30: 297,500.00 Ft | E30: =C30-D30 -> 2,500.00 Ft | F30: 300,000.00 Ft | G30: 297,500.00 Ft | H30: =F30-G30 -> 2,500.00 Ft
B32: Működési mérőszámok összegzése | C32: Májusi tényleges adatok | D32: Májusi céladatok | E32: Havi eltérés | F32: Idei tényleges adatok | G32: Idei céladatok | H32: Idei különbség | I32: Megjegyzések
B33: Hibák száma 1000 szerelvényenként | C33: 2.3 | D33: 1.0 | E33: =D33-C33 -> -1.3 | F33: 1.5 | G33: 1.0 | H33: =F33-G33 -> 0.5 | I33: Minőségi problémák voltak a 3. gyártósoron alkalmazott helytelen festék miatt; a vezető új vizsgálati módszereket vezetett be.
B34: Gyártási kapacitás – egységek havonta | C34: 200,000 | D34: 220,000 | E34: =C34-D34 -> -20,000 | F34: 1,100,000 | G34: 1,150,000 | H34: =F34-G34 -> -50,000
B35: Rendezetlen értékesítés napjai | C35: 35 | D35: 25 | E35: =D35-C35 -> -10 | F35: 33 | G35: 25 | H35: =G35-F35 -> -8
B36: Új megrendelések száma | C36: 19 | D36: 15 | E36: =C36-D36 -> 4 | F36: 83 | G36: 75 | H36: =F36-G36 -> 8
B38: Versenytársak összegzése | C38: A cég profilja | D38: 1. versenytárs | E38: 2. versenytárs | F38: 3. versenytárs | G38: 4. versenytárs | H38: Egyéb | I38: Megjegyzések
B39: Piaci részesedés | C39: 20.00% | D39: 25.00% | E39: 15.00% | F39: 5.00% | G39: 15.00% | H39: 20.00% | I39: A piaci részesedés növekedett az új termékek értékesítésének erősödése miatt.
B40: Bevétel (idén) | C40: =F6 -> 6,200,000.00 Ft | D40: 7,000,000.00 Ft | E40: 4,000,000.00 Ft | F40: 1,500,000.00 Ft | G40: 4,000,000.00 Ft | H40: 6,000,000.00 Ft
B41: Új termékbevezetések (idén) | C41: 900,000.00 Ft | D41: 500,000.00 Ft | E41: 0.00 Ft | F41: 100,000.00 Ft | G41: 500,000.00 Ft | H41: 0.00 Ft
B42: Terepértékesítők száma (idén) | C42: 15 | D42: 20 | E42: 15 | F42: 10 | G42: 15 | H42: HIÁNYZIK

Sheet EREDMÉNYKIMUTATÁS DIAGRAM
B2: EREDMÉNYKIMUTATÁS ÖSSZEGZÉSE DIAGRAM | I2: ='KÖLTSÉGVETÉS ÖSSZEGZÉSE'!I2 -> 2019
B3: ='KÖLTSÉGVETÉS ÖSSZEGZÉSE'!B3 -> Cég neve
B5: Ebben a cellában szerepel a havi és az éves tényleges és céladatokat megjelenítő sávdiagram.

Sheet MÉRLEG DIAGRAM
B2: MÉRLEG ÖSSZEGZÉSE DIAGRAM | I2: ='KÖLTSÉGVETÉS ÖSSZEGZÉSE'!I2 -> 2019
B3: ='KÖLTSÉGVETÉS ÖSSZEGZÉSE'!B3 -> Cég neve
B5: Ebben a cellában szerepel a havi tényleges és céladatokat megjelenítő sávdiagram.
